bitfinex-derivatives/quotes_ETHF0:USTF0_20260131
["timestamp","ask_amount","ask_price","bid_price","bid_amount"]
[1769862922622,0.21184585,2636.8,2634.8,2.226]
[1769862922623,0.20114409,2636.6,2635.4,3.82495733]
[1769862923724,0.20114409,2636.6,2635.4,3.82780471]
[1769862926433,7.252,2636.7,2635.4,3.82780471]
[1769862928845,0.00288132,2636.8,2635.4,3.82780471]
[1769862932137,2.45168292,2638.1,2636.0,3.93012496]
[1769862932344,4.17896083,2638.0,2636.2,3.93012496]
[1769862932543,4.17896083,2637.9,2636.2,3.93012496]
[1769862932841,2.45168292,2638.1,2636.2,3.93012496]
[1769862933045,4.17914481,2638.0,2636.2,3.93012496]
[1769862933345,0.00151058,2637.8,2636.2,3.93012496]
[1769862934040,2.45408315,2638.1,2636.2,3.93012496]
[1769862934241,0.00391081,2638.1,2636.5,3.93088026]
[1769862935940,0.00391081,2638.1,2636.7,3.91972015]
[1769862937243,0.00391081,2638.1,2636.7,4.10964015]
[1769862938435,0.70894516,2639.0,2636.9,3.91595974]
[1769862938639,0.00674364,2639.2,2637.6,3.91400433]
[1769862938947,0.03680743,2639.2,2637.6,3.91400433]
[1769862939151,0.03006379,2639.1,2637.6,3.91400433]
[1769862939348,0.03006379,2639.0,2637.6,3.91400433]
[1769862939547,0.03006379,2638.9,2637.3,3.91400433]
[1769862939737,0.0219014,2638.8,2637.3,3.91400433]
[1769862940750,0.0219014,2638.8,2637.3,3.91723534]
[1769862942847,0.00416555,2639.0,2637.3,3.91723534]
[1769862943049,0.03483555,2639.0,2637.3,3.91723534]
[1769862944447,0.0690641,2638.9,2637.3,3.91723534]
[1769862944948,0.0690641,2638.7,2637.3,3.91723534]
[1769862945150,3.795,2638.6,2637.3,3.91723534]
[1769862945549,0.00416555,2639.0,2637.3,3.91723534]
[1769862946151,0.00416555,2639.0,2637.3,4.10711534]
[1769862947249,0.00416555,2639.0,2637.4,3.84358968]
[1769862953958,0.00416555,2639.0,2637.7,4.03343968]
[1769862955759,0.00416555,2639.0,2637.9,3.84358968]
[1769862956861,0.00416555,2639.0,2637.9,4.03341968]
[1769862958462,0.00674364,2639.2,2638.1,3.84358968]
[1769862959666,0.00987383,2639.2,2638.1,3.84358968]
[1769862960556,3.68088313,2639.8,2638.4,4.03338968]
[1769862960867,3.68088313,2640.1,2638.6,3.84358968]
[1769862961466,5.176,2640.3,2638.8,3.84358968]
[1769862961661,7.86141649,2640.2,2638.8,3.84358968]
[1769862961865,4.18053336,2640.1,2638.8,3.84358968]
[1769862962066,3.68088313,2640.2,2638.8,3.84358968]
[1769862962570,4.18036465,2640.1,2638.8,3.84358968]
[1769862962768,3.68088313,2640.2,2638.8,3.84358968]
[1769862962972,3.68088313,2640.0,2638.5,3.84358968]
[1769862963266,3.68088313,2639.7,2638.2,3.84358968]
[1769862963470,3.68088313,2639.5,2638.2,3.84358968]
[1769862964371,3.68088313,2639.3,2638.2,3.84358968]
[1769862970275,4.18680824,2639.2,2638.2,3.84358968]
[1769862970479,3.68088313,2639.3,2638.2,3.84358968]
[1769862970669,4.18754172,2639.2,2638.2,3.84358968]
[1769862970870,3.68088313,2639.3,2638.2,3.84358968]
[1769862971070,2.24875674,2639.5,2638.2,3.84358968]
[1769862971268,4.19852493,2639.5,2638.2,3.84358968]
[1769862971472,4.19852493,2639.4,2638.2,3.84358968]
[1769862971673,13.20175674,2639.6,2638.2,3.84358968]
[1769862971878,4.19901022,2639.5,2638.2,3.84358968]
[1769862972078,4.19901022,2639.4,2638.2,3.84358968]
[1769862972379,13.20175674,2639.6,2638.2,3.84358968]
[1769862972574,4.20007153,2639.5,2638.2,3.84358968]
[1769862972773,13.20175674,2639.6,2638.2,3.84358968]
[1769862972774,4.20007153,2639.4,2638.2,3.84358968]
[1769862972983,13.20175674,2639.6,2638.2,3.84358968]
[1769862973180,4.20007133,2639.5,2638.2,3.84358968]
[1769862973378,4.20007133,2639.4,2638.2,3.84358968]
[1769862973682,13.20175674,2639.6,2638.2,3.84358968]
[1769862973982,4.20068057,2639.5,2638.2,3.84358968]
[1769862974277,4.20068057,2639.4,2638.2,3.84358968]
[1769862974479,13.20175674,2639.6,2638.2,3.84358968]
[1769862974682,4.20207336,2639.5,2638.2,3.84358968]
[1769862974869,2.24875674,2640.0,2638.4,3.75713912]
[1769862975073,4.20174053,2639.9,2638.4,3.75713912]
[1769862975273,3.73233477,2640.0,2638.4,3.75713912]
[1769862975474,4.20171287,2639.9,2638.4,3.75713912]
[1769862975670,3.73233477,2640.0,2638.4,3.75713912]
[1769862975883,4.20171141,2639.9,2638.4,3.75713912]
[1769862976085,3.73233477,2640.0,2638.4,3.75713912]
[1769862976585,4.19772994,2639.9,2638.4,3.75713912]
[1769862976777,3.73233477,2640.0,2638.4,3.75713912]
[1769862976974,4.19773015,2639.9,2638.4,3.75713912]
[1769862977182,3.73233477,2640.0,2638.4,3.75713912]
[1769862977774,5.98109151,2640.2,2638.4,3.75713912]
[1769862977975,4.19661905,2640.1,2638.4,3.75713912]
[1769862978173,4.19661905,2640.0,2638.4,3.75713912]
[1769862978477,0.00321627,2640.3,2638.7,3.75713912]
[1769862978886,0.00321627,2640.3,2638.7,3.94690912]
[1769862979087,0.00321627,2640.3,2638.9,3.75713912]
[1769862979482,2.24875674,2640.7,2638.4,8.26832744]
[1769862979483,9.77409151,2641.0,2639.4,3.75713912]
[1769862979787,4.19264888,2640.9,2639.4,3.75713912]
[1769862979983,9.74933477,2641.0,2639.4,3.75713912]
[1769862980379,3.73233477,2640.3,2638.7,3.75713912]
[1769862980580,3.73233477,2639.9,2638.7,0.00422401]
[1769862980781,3.73233477,2639.7,2638.2,3.75713912]
[1769862980983,3.73233477,2639.4,2637.9,3.75713912]
[1769862981182,3.73233477,2639.2,2637.9,3.75713912]
[1769862981889,3.73233477,2639.2,2637.9,3.76073633]
[1769862982085,3.73233477,2639.5,2637.9,3.76073633]
[1769862982288,3.73233477,2639.8,2638.1,3.75713912]
[1769862982586,3.73233477,2640.0,2638.5,3.75713912]
[1769862983693,3.67229722,2639.8,2638.5,3.75713912]
[1769862984388,3.67229722,2639.6,2638.5,3.75713912]
[1769862984591,7.258,2639.5,2638.5,3.75713912]
[1769862984790,10.93029722,2639.5,2638.5,3.75713912]
[1769862984987,3.67229722,2639.8,2638.5,3.75713912]
[1769862985183,0.00384988,2640.3,2638.5,3.75713912]
[1769862985396,3.67229722,2640.1,2638.5,3.75713912]
[1769862991190,3.70364596,2639.9,2638.5,3.75713912]
[1769862991395,3.89333596,2639.9,2638.5,3.75713912]
[1769862994295,3.71009219,2639.7,2638.1,3.75713912]
[1769862994494,3.71009219,2639.3,2637.9,0.00359721]
[1769862994696,3.71606248,2639.1,2637.9,0.00359721]
[1769862995599,3.71606248,2638.9,2637.5,3.75713912]
[1769862995799,14.77806248,2638.8,2637.5,3.75713912]
[1769862996695,14.77806248,2638.8,2637.5,3.76041317]
[1769862997095,3.55091084,2638.7,2637.5,3.76041317]
[1769862997399,4.461,2638.6,2637.5,3.76041317]
[1769862997601,3.55091084,2638.7,2637.5,3.76041317]
[1769862997802,3.297,2638.6,2637.5,3.76041317]
[1769862999300,2.956,2638.5,2637.5,3.76041317]
[1769863001300,3.55091084,2638.7,2637.5,3.76041317]
[1769863001500,2.825,2638.6,2637.5,3.76041317]
[1769863003399,2.78,2639.2,2637.5,3.76041317]
[1769863003799,6.39670737,2639.2,2637.5,3.76041317]
[1769863004606,3.61670737,2639.2,2637.5,3.76041317]
[1769863004901,2.225,2639.2,2637.5,3.76041317]
[1769863006208,3.61138961,2639.8,2638.1,3.67158508]
[1769863009305,3.80108961,2639.8,2638.1,3.67158508]
[1769863010211,3.61138961,2639.8,2638.1,3.67158508]
[1769863012913,5.83638961,2639.8,2638.1,3.86140508]
[1769863013117,3.61138961,2639.8,2638.1,3.86140508]
[1769863015010,3.50739996,2639.6,2638.1,3.67158508]
[1769863015207,3.50739996,2639.6,2637.5,18.11413429]
[1769863015414,2.26543773,2638.5,2636.8,3.67832913]
[1769863015607,3.50739996,2638.3,2636.8,3.67832913]
[1769863016212,7.249,2638.2,2637.0,3.67158508]
[1769863016416,7.25179267,2638.2,2637.0,3.67444225]
[1769863016608,7.25179267,2638.2,2637.0,3.6777163]
[1769863017113,4.619,2638.1,2637.0,3.6777163]
[1769863017516,4.619,2638.1,2637.2,3.67158508]
[1769863018419,4.619,2638.1,2637.2,3.67485913]
[1769863018916,0.00279267,2638.2,2637.2,3.67485913]
[1769863019115,4.46279267,2638.2,2637.2,3.67158508]
[1769863019515,7.24779267,2638.2,2637.2,3.67158508]
[1769863020018,0.00279267,2638.2,2637.6,3.67158508]
[1769863020420,0.00279267,2638.2,2637.7,0.00327405]
[1769863020919,0.00279267,2638.2,2637.7,3.67485913]
[1769863022217,3.41804037,2638.9,2638.1,3.67158508]
[1769863022414,5.64304037,2638.8,2637.5,3.67158508]
[1769863022614,3.41804037,2638.7,2637.5,3.67158508]
[1769863022914,3.41804037,2638.7,2637.2,3.67158508]
[1769863023414,3.42260312,2638.7,2637.2,3.67158508]
[1769863023617,3.865,2638.6,2637.2,3.67158508]
[1769863023815,3.44738742,2638.5,2637.2,3.67158508]
[1769863028626,3.38019018,2637.1,2635.8,3.89096403]
[1769863028927,3.19030018,2637.0,2635.8,3.89096403]
[1769863029110,3.19030018,2637.0,2635.9,3.89423808]
[1769863029111,2.225,2636.9,2635.9,3.89423808]
[1769863029315,2.225,2636.9,2635.9,3.89096403]
[1769863029513,3.19030018,2636.8,2635.9,3.89363218]
[1769863029718,3.19355714,2636.8,2635.9,0.00266815]
[1769863032019,0.00325696,2636.8,2636.1,0.00327405]
[1769863032218,3.03949209,2636.8,2636.0,0.00327405]
[1769863032724,3.03949209,2636.8,2636.1,0.00327405]
[1769863032925,3.03949209,2636.8,2636.0,0.00327405]
[1769863033113,0.00325696,2636.8,2636.1,0.00327405]
[1769863033627,0.00325696,2636.8,2636.2,0.00327405]
[1769863033926,0.00325696,2636.8,2636.1,0.00327405]
[1769863034230,0.00325696,2636.8,2636.2,0.00327405]
[1769863034427,7.25425696,2636.8,2636.2,0.00327405]
[1769863034630,7.25425696,2636.8,2636.3,0.00327405]
[1769863034820,7.25425696,2636.8,2636.2,0.00327405]
[1769863035324,7.25425696,2636.8,2636.3,0.00327405]
[1769863035525,7.25425696,2636.8,2636.2,0.00327405]
[1769863036028,7.25425696,2636.8,2636.3,0.00327405]
[1769863036228,7.25425696,2636.8,2636.2,0.00327405]
[1769863036729,7.25425696,2636.8,2636.3,0.00327405]
[1769863037029,7.25425696,2636.8,2636.2,0.00327405]
[1769863037439,10.30002175,2636.8,2636.0,3.89096403]
[1769863037730,3.04576479,2636.7,2635.9,0.00266815]
[1769863037921,3.04576479,2636.7,2635.9,0.0059422]
[1769863038120,3.04576479,2636.7,2636.0,0.00327405]
[1769863039421,3.04576479,2636.7,2635.9,0.00266815]
[1769863040620,3.04576479,2636.7,2635.4,3.89096403]
[1769863040824,3.23568479,2636.7,2635.4,3.89096403]
[1769863041023,3.23568479,2636.7,2635.6,0.00327405]
[1769863041422,3.23568479,2636.7,2635.7,0.00327405]
[1769863041628,3.23568479,2636.7,2635.7,0.00475619]
[1769863041831,3.23568479,2636.7,2635.7,0.00803024]
[1769863042033,3.23568479,2636.7,2635.8,0.00327405]
[1769863042332,3.0632196,2636.0,2634.0,3.89096403]
[1769863042628,7.25425696,2636.8,2634.0,3.89096403]
[1769863042629,3.2531996,2635.8,2634.0,3.89096403]
[1769863043428,3.2531996,2635.8,2634.0,3.89559713]
[1769863044025,3.08541347,2635.6,2634.0,3.89559713]
[1769863045322,3.12201914,2635.4,2634.0,3.89559713]
[1769863047329,3.33005391,2635.1,2633.7,3.89096403]
[1769863048043,3.14001391,2634.9,2633.7,3.89096403]
[1769863048230,3.14001391,2634.7,2632.9,3.89096403]
[1769863048430,3.14369948,2634.7,2632.9,3.89586892]
[1769863049332,3.34477461,2634.5,2632.9,3.89586892]
[1769863049534,3.34477461,2634.4,2632.9,3.89586892]
[1769863051730,3.34872874,2634.0,2632.9,0.00490489]
[1769863051936,3.34872874,2634.0,2632.6,3.89096403]
[1769863053044,3.53362578,2633.5,2632.6,0.00192463]
[1769863053338,3.34347578,2633.3,2632.6,0.00192463]
[1769863053741,3.34347578,2633.3,2631.2,3.89096403]
[1769863054037,3.34347578,2633.1,2631.2,3.89096403]
[1769863054338,0.19017,2633.2,2631.2,3.89096403]
[1769863054538,3.53364578,2633.2,2631.2,3.89096403]
[1769863054732,3.53364578,2633.2,2631.2,3.89481649]
[1769863055230,3.53002708,2633.0,2631.2,3.89481649]
[1769863055430,3.53003708,2632.8,2631.2,3.89481649]
[1769863055737,3.5328634,2632.8,2631.2,3.89481649]
[1769863056932,3.27766087,2632.5,2630.6,3.7735605]
[1769863057130,3.27766087,2632.3,2630.6,3.7735605]
[1769863057435,3.46790087,2632.3,2630.6,3.7735605]
[1769863057635,3.27766087,2632.1,2630.6,3.7735605]
[1769863058738,3.20896569,2632.8,2630.8,3.7735605]
[1769863059043,3.20896569,2632.8,2631.0,3.7735605]
[1769863059044,0.00282632,2632.8,2631.0,3.7735605]
[1769863059430,3.20896569,2632.8,2631.0,3.7735605]
[1769863061541,0.00282632,2632.8,2631.0,3.7735605]
[1769863061934,0.00282632,2632.8,2631.2,3.75124245]
[1769863062141,0.00282632,2632.8,2631.4,3.75124245]
[1769863063840,2.229,2633.5,2631.6,3.75124245]
[1769863064034,3.20593346,2633.4,2631.6,3.75124245]
[1769863064428,3.20593346,2633.0,2631.6,3.75124245]
[1769863064833,2.229,2633.0,2631.6,3.75124245]
[1769863065041,3.3285851,2633.0,2631.6,3.75406877]
[1769863065244,3.5187751,2634.3,2632.3,3.75124245]
[1769863065940,0.19009,2634.4,2632.3,3.75124245]
[1769863065941,3.52551915,2633.6,2632.3,3.75124245]
[1769863066134,0.01025716,2633.6,2632.3,3.75124245]
[1769863066442,3.52903226,2633.6,2632.3,3.75124245]
[1769863066641,0.01025716,2633.6,2632.3,3.75124245]
[1769863067543,2.45549773,2634.8,2632.5,3.75124245]
[1769863067843,3.53384641,2635.4,2633.2,3.75124245]
[1769863068042,3.53384641,2635.2,2633.2,3.75124245]
[1769863068246,3.53384641,2635.0,2633.2,3.75124245]
[1769863068434,3.801,2635.1,2633.2,3.75124245]
[1769863068741,0.0037042,2635.1,2633.2,3.94141245]
[1769863068949,3.56433249,2635.1,2633.2,3.94141245]
[1769863069338,3.56062829,2636.0,2633.6,3.94138245]
[1769863070445,1.78616428,2635.6,2633.6,3.75540057]
[1769863070652,3.56062829,2635.5,2633.6,3.75540057]
[1769863071140,3.56899641,2635.8,2633.6,3.75540057]
[1769863072349,3.56899641,2635.8,2633.8,3.75124245]
[1769863072648,5.79799641,2635.8,2633.8,3.75124245]
[1769863072945,2.26543773,2636.3,2633.8,3.75124245]
[1769863072946,2.26543773,2636.5,2633.8,3.75124245]
[1769863073150,3.58095304,2637.2,2635.2,3.75124245]
[1769863073648,3.58095304,2637.0,2635.2,3.75124245]
[1769863074150,3.58552326,2637.0,2635.2,3.75124245]
[1769863074652,2.753,2636.9,2635.2,3.75124245]
[1769863074841,6.24558136,2636.9,2635.2,3.75124245]
[1769863075146,0.00457022,2637.0,2635.7,3.75124245]
[1769863075346,0.00457022,2637.0,2635.7,3.75416459]
[1769863077143,3.8,2638.2,2635.7,3.75416459]
[1769863077144,3.51871925,2638.0,2635.7,3.75416459]
[1769863077347,2.228,2637.9,2635.7,3.75416459]
[1769863077550,3.51871925,2637.8,2635.7,3.75416459]
[1769863078152,3.52302311,2637.8,2635.7,3.94415459]
[1769863078946,3.51688002,2637.6,2635.7,3.75416459]
[1769863079349,3.51688002,2637.4,2635.7,3.75416459]
[1769863079745,0.00430386,2637.8,2635.9,3.75124245]
[1769863079946,37.21454294,2638.4,2635.8,0.65]
[1769863079947,3.52362981,2638.4,2636.8,3.75124245]
[1769863080959,3.52820671,2638.4,2636.8,3.75124245]
[1769863082045,3.51507173,2639.8,2637.5,3.75124245]
[1769863082245,0.18968,2640.1,2637.5,3.75124245]
[1769863082246,3.51507173,2639.6,2637.5,3.75124245]
[1769863083051,3.51983696,2639.6,2637.7,3.75124245]
[1769863083256,3.51983696,2639.6,2637.7,3.75433802]
[1769863083758,3.70954696,2639.6,2637.7,3.75433802]
[1769863083957,3.49889103,2639.4,2637.7,3.75433802]
[1769863084158,3.49889103,2639.2,2637.7,3.75433802]
[1769863084760,0.06596775,2640.0,2638.1,3.75124245]
[1769863085054,33.69091313,2641.3,2638.8,3.75124245]
[1769863085055,3.50835718,2641.2,2638.8,3.75124245]
[1769863085250,3.50835718,2640.9,2638.8,3.75124245]
[1769863085454,3.50835718,2640.5,2638.8,3.75124245]
[1769863085860,0.00397273,2640.5,2638.8,3.75124245]
[1769863087058,3.51061261,2640.5,2638.8,3.75124245]
[1769863087358,3.50663988,2640.3,2638.8,3.75124245]
[1769863087555,0.00476523,2640.2,2638.8,3.75124245]
[1769863087859,0.00476523,2640.1,2638.8,3.75124245]
[1769863088256,0.00476523,2640.0,2638.8,3.75124245]
[1769863088458,3.50187465,2639.8,2637.8,3.91880215]
[1769863088762,0.00397273,2640.5,2638.9,3.91880215]
[1769863089762,0.00873796,2640.5,2638.9,3.91880215]
[1769863089964,0.00476523,2640.3,2638.9,3.91880215]
[1769863090165,0.00397273,2640.5,2638.9,3.91880215]
[1769863090371,0.00873796,2640.5,2638.9,3.91880215]
[1769863090666,0.00476523,2640.4,2638.9,3.91880215]
[1769863091461,0.00397273,2640.5,2638.9,3.91880215]
[1769863091662,0.00476523,2640.1,2638.9,3.91880215]
[1769863092068,0.00476523,2639.5,2638.6,3.91880215]
[1769863092263,3.50681405,2639.9,2638.6,3.91880215]
[1769863092463,0.00476523,2639.5,2638.6,3.91880215]
[1769863092658,0.00476523,2639.5,2637.7,0.19294557]
[1769863092659,0.00397273,2640.5,2639.1,5.70496643]
[1769863092965,0.00397273,2640.5,2639.2,3.91880215]
[1769863097070,3.32419064,2640.5,2639.2,3.91880215]
[1769863097258,3.32419064,2641.5,2639.3,3.91880215]
[1769863097462,33.69091313,2642.6,2639.3,3.91880215]
[1769863097463,3.32419064,2641.2,2639.3,3.91880215]
[1769863098066,3.32419064,2641.0,2639.3,3.91880215]
[1769863098263,3.32419064,2640.6,2639.3,3.91880215]
[1769863098459,3.32419064,2640.5,2639.3,3.91880215]
[1769863100370,2.20992082,2642.0,2639.7,3.91880215]
[1769863100569,3.52795066,2642.1,2639.8,3.91880215]
[1769863101268,3.53066982,2642.1,2639.8,3.92190091]
[1769863102666,0.00271916,2642.1,2639.8,3.92190091]
[1769863102870,0.00271916,2642.1,2640.6,3.91880215]
[1769863103773,3.793,2642.8,2640.9,3.91880215]
[1769863104581,3.46642947,2642.7,2640.6,3.91880215]
[1769863104771,3.53142947,2641.9,2639.8,0.00309876]
[1769863104969,7.40242947,2641.8,2639.8,0.00309876]
[1769863105165,3.7964579,2641.7,2639.8,0.00309876]
[1769863105472,7.32788737,2641.7,2639.8,0.00309876]
[1769863105881,3.53142947,2641.3,2639.8,0.00309876]
[1769863106273,0.0044579,2641.2,2639.8,0.00309876]
[1769863106773,0.0044579,2641.1,2639.9,3.91880215]
[1769863106974,3.67712742,2641.2,2639.9,3.91880215]
[1769863107175,3.68158532,2641.1,2639.9,3.91880215]
[1769863107678,0.0044579,2640.8,2639.9,3.91880215]
[1769863107879,0.00896232,2640.8,2639.9,3.91880215]
[1769863108083,3.82240205,2640.5,2638.9,0.9860578]
[1769863108266,3.82685995,2639.7,2636.5,0.18993]
[1769863108471,3.82240205,2639.5,2636.5,0.18993]
[1769863108676,3.82240205,2639.3,2636.5,0.18993]
[1769863108974,11.149,2639.2,2636.9,0.1899]
[1769863109277,14.97140205,2639.2,2636.9,0.19399303]
[1769863109972,3.82240205,2639.2,2636.9,0.19399303]
[1769863110181,3.82240205,2639.7,2637.0,3.91880215]
[1769863111173,3.82240205,2639.7,2637.5,3.91880215]
[1769863111480,6.014,2640.0,2637.5,3.91880215]
[1769863111481,3.82240205,2639.5,2637.5,3.91880215]
[1769863112277,2.24657522,2639.8,2637.5,3.91880215]
[1769863112483,3.791,2640.0,2638.1,4.10862215]
[1769863113774,3.791,2640.0,2638.7,3.91880215]
[1769863114974,7.61340205,2640.0,2638.7,3.91880215]
[1769863115176,0.0044579,2639.8,2638.7,3.91880215]
[1769863115685,0.0044579,2639.7,2638.7,3.91880215]
[1769863115885,0.0044579,2639.8,2638.7,3.91880215]
[1769863116384,0.0044579,2639.7,2638.7,3.91880215]
[1769863116981,3.58064104,2639.9,2638.7,3.91880215]
[1769863117181,0.0044579,2639.7,2638.7,3.91880215]
[1769863118486,0.0044579,2639.6,2638.7,3.91880215]
[1769863118786,0.0044579,2639.7,2638.7,3.91880215]
[1769863119284,0.0044579,2639.6,2638.7,3.91880215]
[1769863119485,0.0044579,2639.7,2638.7,3.91880215]
[1769863119987,0.0044579,2639.6,2638.7,3.91880215]
[1769863120582,3.58064104,2639.9,2638.7,3.91880215]
[1769863120982,0.0044579,2639.4,2638.7,3.91880215]
[1769863121380,0.0044579,2639.1,2638.7,3.91880215]
[1769863121579,0.0044579,2639.2,2638.7,3.91880215]
[1769863122082,0.0044579,2639.0,2638.7,3.91880215]
[1769863122386,0.0044579,2639.2,2638.7,3.91880215]
[1769863122885,3.791,2640.0,2638.7,3.91880215]
[1769863123680,3.86617193,2639.9,2638.7,3.91880215]
[1769863128288,3.791,2640.0,2638.7,3.91880215]
[1769863128592,3.86617193,2640.3,2638.9,3.99818986]
[1769863128892,0.00450442,2640.8,2639.5,3.99813986]
[1769863141497,3.87067635,2640.8,2639.5,3.99813986]
[1769863142492,0.00450442,2640.8,2639.8,3.80842986]
[1769863142795,0.00674299,2641.0,2639.8,3.80842986]
[1769863142997,0.00674299,2641.0,2640.0,3.80842986]
[1769863143799,0.01065154,2641.0,2640.0,3.80842986]
[1769863145098,0.01065154,2641.0,2640.0,3.99810986]
[1769863145692,3.86617193,2641.5,2640.0,3.99810986]
[1769863145889,3.86617193,2641.9,2640.2,3.80842986]
[1769863146093,3.86617193,2641.9,2640.4,3.99807986]
[1769863146801,3.86889142,2641.9,2640.4,3.99807986]
[1769863150902,3.86889142,2641.9,2639.7,2.223]
[1769863150903,3.64701933,2641.7,2640.1,3.8152201]
[1769863151093,3.64701933,2641.7,2638.4,14.8212156]
[1769863151094,3.83659933,2641.5,2639.5,3.8152201]
[1769863151294,3.64701933,2641.3,2639.5,3.8152201]
[1769863152206,3.64701933,2641.1,2639.5,3.8152201]
[1769863152597,3.64701933,2641.0,2639.5,3.8152201]
[1769863152995,3.64701933,2640.8,2639.2,3.8152201]
[1769863153403,3.64701933,2640.8,2639.2,4.0049601]
[1769863153616,3.79,2641.2,2639.2,4.0049601]
[1769863153914,3.64701933,2641.1,2639.4,4.0049501]
[1769863154912,3.79,2641.2,2639.6,4.0049201]
[1769863155211,3.79,2641.2,2639.6,3.8152201]
[1769863155418,3.79,2641.2,2639.7,3.8152201]
[1769863156213,3.79,2641.2,2639.7,4.0049201]
[1769863156811,3.79,2641.2,2639.9,3.8152201]
[1769863157215,3.64701933,2641.7,2640.1,3.8152201]
[1769863157414,0.00271949,2641.9,2640.3,3.8152201]
[1769863157606,3.64973882,2641.9,2640.3,3.8152201]
[1769863159517,3.64701933,2641.7,2640.3,3.8152201]
[1769863159717,3.64701933,2641.5,2640.3,3.8152201]
[1769863159914,3.64701933,2641.3,2640.0,3.8152201]
[1769863160415,3.64701933,2641.3,2640.0,4.0049001]
[1769863160725,10.76901933,2641.6,2640.2,3.8152201]
[1769863160913,10.76901933,2641.6,2640.4,4.0048701]
[1769863161114,3.64701933,2641.6,2640.4,4.0048701]
[1769863166223,3.64701933,2641.6,2640.4,3.8152201]
[1769863167322,3.64701933,2641.4,2640.4,3.8152201]
[1769863169528,3.64701933,2641.4,2640.0,3.8152201]
[1769863169929,3.64701933,2641.4,2640.2,3.8152201]
[1769863171328,3.64701933,2641.4,2640.2,4.0048901]
[1769863179838,3.91164909,2641.2,2639.8,8.26832744]
[1769863180238,3.91164909,2641.2,2639.6,3.72900673]
[1769863180937,4.1979163,2641.1,2639.6,3.72900673]
[1769863181134,3.85499556,2641.0,2639.6,3.72900673]
[1769863181329,3.85499556,2641.0,2639.6,3.91871673]
[1769863181730,4.19829929,2640.9,2639.6,3.72900673]
[1769863182030,3.85499556,2641.0,2639.2,14.28132744]
[1769863182031,3.85499556,2640.8,2639.2,12.05832744]
[1769863182235,3.85499556,2640.8,2639.3,3.75252356]
[1769863184636,3.85499556,2640.8,2639.3,3.94225356]
[1769863184838,3.85499556,2640.8,2639.6,3.75252356]
[1769863188043,3.85499556,2640.8,2639.3,3.75252356]
[1769863190144,3.85499556,2640.6,2639.0,3.75252356]
[1769863190439,3.85499556,2640.4,2639.0,3.75252356]
[1769863190742,3.85499556,2640.3,2639.0,3.75252356]
[1769863195342,4.288,2640.4,2639.0,3.75252356]
[1769863195540,4.288,2640.4,2639.2,3.75252356]
[1769863196447,3.85499556,2640.3,2639.2,3.75252356]
[1769863201251,3.791,2640.5,2639.4,3.75252356]
[1769863201448,3.85499556,2640.9,2639.6,3.94223356]
[1769863202546,43.06695028,2641.6,2639.9,3.75252356]
[1769863202547,3.85499556,2641.6,2639.9,3.75252356]
[1769863202748,3.85499556,2641.6,2640.1,3.75252356]
[1769863207441,3.85499556,2641.6,2640.1,3.94219356]
[1769863207638,3.85499556,2641.6,2640.5,3.69352917]
[1769863208247,3.85499556,2641.6,2640.5,3.88316917]
[1769863210445,3.57030762,2641.9,2640.5,3.88316917]
[1769863215846,3.57030762,2641.9,2640.7,3.69352917]
[1769863216146,3.56758813,2641.8,2640.7,3.69352917]
[1769863217251,3.56758813,2641.8,2640.8,0.18962]
[1769863217447,3.56758813,2641.8,2640.8,0.00347438]
[1769863217652,3.56758813,2641.8,2640.8,3.69700355]
[1769863218542,3.56758813,2641.7,2640.1,3.69352917]
[1769863219555,3.56758813,2641.7,2640.1,3.69689783]
[1769863220256,3.56758813,2641.7,2640.1,3.88657783]
[1769863225755,3.56758813,2641.7,2640.3,3.69352917]
[1769863227553,3.56758813,2641.5,2640.3,3.69352917]
[1769863231654,3.56758813,2641.5,2640.2,0.18967]
[1769863231865,3.56758813,2641.5,2640.1,0.00336866]
[1769863232161,3.56758813,2641.3,2640.1,0.00336866]
[1769863232464,3.56758813,2641.1,2640.1,0.00336866]
[1769863232759,6.936,2641.0,2639.4,11.96185661]
[1769863232964,3.56758813,2640.9,2639.4,11.96185661]
[1769863233156,3.56758813,2640.9,2639.4,3.69352917]
[1769863233967,3.56758813,2640.9,2639.4,3.69784898]
[1769863235368,3.56758813,2641.2,2639.9,3.69352917]
[1769863235864,3.56758813,2641.2,2640.1,3.69352917]
[1769863237265,3.68273052,2641.7,2640.1,3.69352917]
[1769863237465,3.68273052,2641.5,2640.1,3.69352917]
[1769863240163,3.68273052,2641.5,2640.3,3.82331789]
[1769863240467,8.05316184,2641.8,2640.5,3.63365789]
[1769863241666,3.65616184,2641.8,2640.5,3.82330789]
[1769863241867,0.00271949,2641.9,2640.7,3.63365789]
[1769863242069,3.65888133,2641.9,2640.7,3.82328789]
[1769863245072,0.00271949,2641.9,2640.9,3.63365789]
[1769863245261,3.65616184,2642.6,2641.4,3.63365789]
[1769863246469,3.66034795,2642.6,2641.4,3.63723942]
[1769863246668,3.65616184,2642.5,2641.4,0.00358153]
[1769863248972,3.65616184,2642.5,2640.8,3.82327789]
[1769863250066,3.65616184,2642.5,2640.9,0.18961]
[1769863250370,3.65616184,2642.5,2641.0,3.82326789]
[1769863256980,3.65616184,2642.5,2641.0,3.63365789]
[1769863258479,3.65616184,2642.3,2641.0,3.63365789]
[1769863262085,3.65616184,2642.3,2640.8,0.00345927]
[1769863262987,3.65616184,2642.3,2640.8,3.63711716]
[1769863264486,3.65616184,2642.1,2640.8,0.00345927]
[1769863264688,3.65616184,2641.9,2640.8,0.00345927]
[1769863265084,3.65616184,2641.7,2640.2,3.63365789]
[1769863266192,3.65616184,2641.7,2640.2,3.6380716]
[1769863266792,3.57768841,2641.5,2640.2,0.00441371]
[1769863266985,3.57768841,2641.3,2640.2,0.00441371]
[1769863267188,3.57768841,2641.1,2640.2,0.00441371]
[1769863273695,3.57768841,2641.1,2640.2,3.81546859]
[1769863273997,3.57768841,2641.7,2640.2,4.00513859]
[1769863274696,3.57768841,2642.0,2640.5,3.81105488]
[1769863275194,3.57768841,2642.0,2640.7,3.81105488]
[1769863279205,3.57768841,2642.0,2640.4,3.81105488]
[1769863282912,3.57768841,2641.8,2640.4,3.81105488]
[1769863283508,3.57768841,2641.8,2640.2,0.19408371]
[1769863283509,3.57768841,2641.8,2640.2,4.00513859]
[1769863283712,3.57768841,2641.8,2640.4,3.81105488]
[1769863291123,3.57768841,2641.8,2640.6,3.81105488]
[1769863294509,3.57768841,2641.8,2640.6,4.00068488]
[1769863294718,3.57768841,2642.0,2640.9,3.81105488]
[1769863299624,3.57768841,2642.0,2641.0,3.66442528]
[1769863311832,3.57768841,2642.0,2641.1,3.70961148]
[1769863314626,3.62898531,2642.6,2641.9,3.64461148]
[1769863316535,3.62898531,2642.6,2641.7,3.64461148]
[1769863318231,3.6247992,2642.8,2641.9,3.64461148]
[1769863319237,3.62915308,2642.8,2641.9,3.64461148]
[1769863320430,3.62915308,2642.8,2641.7,0.065]
[1769863320739,3.6247992,2642.4,2641.7,0.065]
[1769863321731,2.291,2642.5,2641.7,3.70961148]
[1769863322336,2.291,2642.5,2641.9,1.1599242]